[Event "Early-Titled-Tuesday-Blitz-February-20-2024"]
[Site "Chess.com"]
[Date "2024.02.20"]
[Round "11"]
[White "FREDERICKtheMATE"]
[Black "Zq1"]
[Result "1-0"]
[WhiteElo "2676"]
[BlackElo "2512"]
[TimeControl "180+1"]
[EndTime "10:08:51 PST"]
[Termination "FREDERICKtheMATE won on time"]

1. d4 {[%clk 0:03:00.9]} 1... Nf6 {[%clk 0:02:58.5]} 2. c4 {[%clk 0:03:01]} 2...
a6 {[%clk 0:02:58.7]} 3. Nc3 {[%clk 0:03:00.1]} 3... c5 {[%clk 0:02:58.7]} 4.
dxc5 {[%clk 0:02:57.9]} 4... e6 {[%clk 0:02:57.9]} 5. e4 {[%clk 0:02:56.9]} 5...
Qc7 {[%clk 0:02:57.1]} 6. b4 {[%clk 0:02:54.2]} 6... d6 {[%clk 0:02:35.8]} 7.
Bf4 {[%clk 0:02:53.3]} 7... e5 {[%clk 0:02:32.4]} 8. Bg5 {[%clk 0:02:53.1]} 8...
dxc5 {[%clk 0:02:27.2]} 9. Bxf6 {[%clk 0:02:52.6]} 9... gxf6 {[%clk 0:02:25.1]}
10. Nd5 {[%clk 0:02:53.1]} 10... Qd8 {[%clk 0:02:23.6]} 11. b5 {[%clk 0:02:50]}
11... Be6 {[%clk 0:02:16.7]} 12. Nf3 {[%clk 0:02:36.4]} 12... axb5 {[%clk
0:02:07.8]} 13. cxb5 {[%clk 0:02:36.5]} 13... Qa5+ {[%clk 0:02:06.7]} 14. Qd2
{[%clk 0:02:32.1]} 14... Qxd2+ {[%clk 0:02:06]} 15. Nxd2 {[%clk 0:02:33]} 15...
Bxd5 {[%clk 0:02:04.3]} 16. exd5 {[%clk 0:02:33]} 16... f5 {[%clk 0:01:42.2]}
17. Nc4 {[%clk 0:02:26.3]} 17... Nd7 {[%clk 0:01:38.6]} 18. a4 {[%clk
0:02:23.1]} 18... b6 {[%clk 0:01:31.8]} 19. d6 {[%clk 0:02:15.3]} 19... Bg7
{[%clk 0:01:22.7]} 20. Be2 {[%clk 0:01:51.5]} 20... O-O {[%clk 0:01:13.2]} 21.
O-O {[%clk 0:01:50.8]} 21... Ra7 {[%clk 0:01:11.4]} 22. Ne3 {[%clk 0:01:37.2]}
22... e4 {[%clk 0:01:01.3]} 23. Ra2 {[%clk 0:01:30.1]} 23... Rfa8 {[%clk
0:00:58.5]} 24. Bd1 {[%clk 0:01:19.3]} 24... f4 {[%clk 0:00:52.1]} 25. Nc4
{[%clk 0:01:19.3]} 25... Bd4 {[%clk 0:00:44.2]} 26. Bb3 {[%clk 0:01:17.3]} 26...
Kg7 {[%clk 0:00:41]} 27. Re1 {[%clk 0:01:14.9]} 27... f5 {[%clk 0:00:40.5]} 28.
g4 {[%clk 0:01:10.1]} 28... Kf6 {[%clk 0:00:29.3]} 29. gxf5 {[%clk 0:01:07.6]}
29... Kxf5 {[%clk 0:00:29.3]} 30. Bc2 {[%clk 0:01:01.2]} 30... Re8 {[%clk
0:00:21.7]} 31. Ra3 {[%clk 0:00:46.6]} 31... Nf6 {[%clk 0:00:20.1]} 32. Kf1
{[%clk 0:00:41.4]} 32... Ng4 {[%clk 0:00:18.3]} 33. f3 {[%clk 0:00:36.8]} 33...
Nxh2+ {[%clk 0:00:10]} 34. Kg2 {[%clk 0:00:33]} 34... Nxf3 {[%clk 0:00:09.9]}
35. Rxf3 {[%clk 0:00:33.4]} 35... Rg7+ {[%clk 0:00:09.7]} 36. Kh2 {[%clk
0:00:27.5]} 36... Rg6 {[%clk 0:00:06.7]} 37. d7 {[%clk 0:00:23.5]} 37... Rh6+
{[%clk 0:00:03.3]} 38. Rh3 {[%clk 0:00:23.5]} 38... Rxh3+ {[%clk 0:00:01.1]} 39.
Kxh3 {[%clk 0:00:24.4]} 1-0

[Event "Early-Titled-Tuesday-Blitz-February-20-2024"]
[Site "Chess.com"]
[Date "2024.02.20"]
[Round "11"]
[White "Viacheslav92"]
[Black "CaspiIsrael"]
[Result "0-1"]
[WhiteElo "2552"]
[BlackElo "2725"]
[TimeControl "180+1"]
[EndTime "10:08:52 PST"]
[Termination "CaspiIsrael won by resignation"]

1. e4 {[%clk 0:03:00.9]} 1... d5 {[%clk 0:02:59.3]} 2. exd5 {[%clk 0:02:58.8]}
2... Qxd5 {[%clk 0:03:00.2]} 3. Nc3 {[%clk 0:02:58.5]} 3... Qd6 {[%clk
0:03:00.6]} 4. d4 {[%clk 0:02:56.3]} 4... Nf6 {[%clk 0:03:00.9]} 5. Nf3 {[%clk
0:02:56.8]} 5... g6 {[%clk 0:03:00.8]} 6. Bc4 {[%clk 0:02:50.3]} 6... Bg7 {[%clk
0:02:59.4]} 7. Ne5 {[%clk 0:02:45.8]} 7... O-O {[%clk 0:02:59.2]} 8. Bf4 {[%clk
0:02:45.1]} 8... Qd8 {[%clk 0:02:54]} 9. Qe2 {[%clk 0:02:42.6]} 9... Qxd4 {[%clk
0:02:51.8]} 10. Bg3 {[%clk 0:02:39.3]} 10... Nbd7 {[%clk 0:02:38.8]} 11. O-O
{[%clk 0:02:25.8]} 11... Nxe5 {[%clk 0:02:32.6]} 12. Bxe5 {[%clk 0:02:26.7]}
12... Qb6 {[%clk 0:02:30.7]} 13. Rad1 {[%clk 0:02:04.2]} 13... Be6 {[%clk
0:02:27.5]} 14. Bd4 {[%clk 0:01:52.3]} 14... Bxc4 {[%clk 0:02:23.1]} 15. Qxc4
{[%clk 0:01:53.2]} 15... Qc6 {[%clk 0:02:15.9]} 16. Qxc6 {[%clk 0:01:37.8]}
16... bxc6 {[%clk 0:02:16.8]} 17. b3 {[%clk 0:01:29.2]} 17... Rfd8 {[%clk
0:02:13.8]} 18. Bxf6 {[%clk 0:01:27.3]} 18... Bxf6 {[%clk 0:02:12.8]} 19. Ne4
{[%clk 0:01:28.2]} 19... Rd5 {[%clk 0:02:06.5]} 20. c4 {[%clk 0:01:23.4]} 20...
Ra5 {[%clk 0:02:01.9]} 21. Rd2 {[%clk 0:01:19.1]} 21... Kg7 {[%clk 0:01:56.2]}
22. Rfd1 {[%clk 0:01:12.9]} 22... Be5 {[%clk 0:01:55.5]} 23. f3 {[%clk
0:01:00.2]} 23... f5 {[%clk 0:01:46.1]} 24. Nf2 {[%clk 0:01:00.1]} 24... Bd6
{[%clk 0:01:38.2]} 25. Nd3 {[%clk 0:00:56]} 25... c5 {[%clk 0:01:33.8]} 26. f4
{[%clk 0:00:49.5]} 26... Kf6 {[%clk 0:01:31.4]} 27. Re2 {[%clk 0:00:48.1]} 27...
Rb8 {[%clk 0:01:30]} 28. Kf2 {[%clk 0:00:47]} 28... Rb6 {[%clk 0:01:30.1]} 29.
Kf3 {[%clk 0:00:46.2]} 29... Rba6 {[%clk 0:01:30.6]} 30. Rdd2 {[%clk 0:00:45.8]}
30... h6 {[%clk 0:01:31]} 31. g3 {[%clk 0:00:45.3]} 31... g5 {[%clk 0:01:31.5]}
32. Rc2 {[%clk 0:00:43.2]} 32... g4+ {[%clk 0:01:31.6]} 33. Ke3 {[%clk
0:00:41.1]} 33... h5 {[%clk 0:01:32]} 34. Kd2 {[%clk 0:00:38.6]} 34... Rxa2
{[%clk 0:01:29.6]} 35. Kc3 {[%clk 0:00:38.8]} 35... Ra1 {[%clk 0:01:29]} 36. Ne5
{[%clk 0:00:34.7]} 36... Rh1 {[%clk 0:01:23]} 37. Nd7+ {[%clk 0:00:30.8]} 37...
Kf7 {[%clk 0:01:21.3]} 38. Rcd2 {[%clk 0:00:31.3]} 38... Raa1 {[%clk 0:01:15.5]}
39. Rd5 {[%clk 0:00:30.6]} 39... e6 {[%clk 0:01:14.8]} 40. Ne5+ {[%clk
0:00:24.5]} 40... Kf6 {[%clk 0:01:10.2]} 41. Rdd2 {[%clk 0:00:19.7]} 41... a5
{[%clk 0:01:08.8]} 42. Nd7+ {[%clk 0:00:19.2]} 42... Ke7 {[%clk 0:01:08.7]} 43.
Ne5 {[%clk 0:00:19.1]} 43... a4 {[%clk 0:01:03.5]} 44. Ng6+ {[%clk 0:00:18.2]}
44... Kf6 {[%clk 0:01:03.3]} 45. Ne5 {[%clk 0:00:17.3]} 45... Ra3 {[%clk
0:01:01.7]} 46. Rb2 {[%clk 0:00:16.3]} 46... Rxb3+ {[%clk 0:00:58.6]} 47. Rxb3
{[%clk 0:00:17.2]} 47... axb3 {[%clk 0:00:59.3]} 48. Kxb3 {[%clk 0:00:18.1]}
48... Bxe5 {[%clk 0:00:59.4]} 49. fxe5+ {[%clk 0:00:19]} 49... Kg5 {[%clk
0:00:59.7]} 50. Ka4 {[%clk 0:00:19.5]} 50... Rb1 {[%clk 0:00:58.8]} 51. Ka5
{[%clk 0:00:19.5]} 51... Rb4 {[%clk 0:00:58.7]} 52. Rc2 {[%clk 0:00:19.3]} 52...
h4 {[%clk 0:00:58.6]} 53. Rd2 {[%clk 0:00:16.2]} 53... hxg3 {[%clk 0:00:58.3]}
54. hxg3 {[%clk 0:00:17.1]} 54... f4 {[%clk 0:00:58.1]} 55. gxf4+ {[%clk
0:00:16.7]} 55... Kxf4 {[%clk 0:00:59]} 56. Rd7 {[%clk 0:00:16.6]} 56... g3
{[%clk 0:00:58.5]} 57. Rxc7 {[%clk 0:00:16.7]} 57... Rxc4 {[%clk 0:00:59.1]} 58.
Rf7+ {[%clk 0:00:17.2]} 58... Kxe5 {[%clk 0:00:58.9]} 0-1

[Event "Early-Titled-Tuesday-Blitz-February-20-2024"]
[Site "Chess.com"]
[Date "2024.02.20"]
[Round "11"]
[White "Natalya_Buksa"]
[Black "SirGerhard"]
[Result "0-1"]
[WhiteElo "2596"]
[BlackElo "2742"]
[TimeControl "180+1"]
[EndTime "10:08:54 PST"]
[Termination "SirGerhard won by resignation"]

1. d4 {[%clk 0:03:00.9]} 1... Nf6 {[%clk 0:02:57.6]} 2. Nc3 {[%clk 0:02:52.2]}
2... d5 {[%clk 0:02:50.9]} 3. Bf4 {[%clk 0:02:52.5]} 3... a6 {[%clk 0:02:49.7]}
4. e3 {[%clk 0:02:52.6]} 4... e6 {[%clk 0:02:46.1]} 5. a3 {[%clk 0:02:52.2]}
5... c5 {[%clk 0:02:46.3]} 6. Nf3 {[%clk 0:02:52.8]} 6... Nc6 {[%clk 0:02:46.3]}
7. Be2 {[%clk 0:02:52.8]} 7... Be7 {[%clk 0:02:46.3]} 8. O-O {[%clk 0:02:52.4]}
8... O-O {[%clk 0:02:46.6]} 9. Ne5 {[%clk 0:02:52.7]} 9... cxd4 {[%clk
0:02:44.7]} 10. exd4 {[%clk 0:02:52.5]} 10... Qb6 {[%clk 0:02:44.3]} 11. Nxc6
{[%clk 0:02:52.3]} 11... Qxc6 {[%clk 0:02:43.6]} 12. Be3 {[%clk 0:02:47.5]}
12... b6 {[%clk 0:02:41.2]} 13. Bd3 {[%clk 0:02:47.8]} 13... Bb7 {[%clk
0:02:41.1]} 14. Ne2 {[%clk 0:02:48.4]} 14... Ne4 {[%clk 0:02:36.5]} 15. c3
{[%clk 0:02:48]} 15... Nd6 {[%clk 0:02:36]} 16. Qc2 {[%clk 0:02:46.7]} 16... g6
{[%clk 0:02:35.2]} 17. Rae1 {[%clk 0:02:46.1]} 17... Nc4 {[%clk 0:02:31.5]} 18.
Bc1 {[%clk 0:02:42.5]} 18... b5 {[%clk 0:02:30.8]} 19. Ng3 {[%clk 0:02:42.1]}
19... a5 {[%clk 0:02:26.7]} 20. Qe2 {[%clk 0:02:40]} 20... b4 {[%clk 0:02:23.9]}
21. Bh6 {[%clk 0:02:05.5]} 21... bxc3 {[%clk 0:02:20.5]} 22. Bxf8 {[%clk
0:02:01.8]} 22... Bxf8 {[%clk 0:02:18.2]} 23. bxc3 {[%clk 0:02:02.3]} 23... Nxa3
{[%clk 0:02:18.3]} 24. Rc1 {[%clk 0:01:59.5]} 24... Nc4 {[%clk 0:02:14.4]} 25.
h4 {[%clk 0:01:59.2]} 25... a4 {[%clk 0:02:13.9]} 26. h5 {[%clk 0:01:59]} 26...
a3 {[%clk 0:02:14.4]} 27. hxg6 {[%clk 0:01:51]} 27... hxg6 {[%clk 0:02:14]} 28.
Rfe1 {[%clk 0:01:40.3]} 28... Bh6 {[%clk 0:02:07.9]} 29. Ra1 {[%clk 0:01:37.3]}
29... Nb2 {[%clk 0:01:44.6]} 30. Bb1 {[%clk 0:01:22.6]} 30... Qxc3 {[%clk
0:01:40.4]} 31. Bxg6 {[%clk 0:01:21.1]} 31... fxg6 {[%clk 0:01:10.7]} 32. Qxe6+
{[%clk 0:01:20.5]} 32... Kh7 {[%clk 0:01:11.3]} 33. Qf7+ {[%clk 0:01:05.9]}
33... Bg7 {[%clk 0:01:11.4]} 34. Qxb7 {[%clk 0:01:05.7]} 34... Rf8 {[%clk
0:01:10.2]} 35. Ne2 {[%clk 0:00:50.8]} 35... Qd2 {[%clk 0:01:03.5]} 36. Qxd5
{[%clk 0:00:33]} 36... Nd3 {[%clk 0:00:54.7]} 37. Rad1 {[%clk 0:00:30.9]} 37...
Qc2 {[%clk 0:00:54.9]} 38. Qe6 {[%clk 0:00:18.4]} 38... Nxe1 {[%clk 0:00:41.7]}
39. Qh3+ {[%clk 0:00:18.3]} 39... Kg8 {[%clk 0:00:42]} 40. Qe6+ {[%clk 0:00:18]}
40... Rf7 {[%clk 0:00:42.3]} 41. Rxe1 {[%clk 0:00:18.2]} 41... a2 {[%clk
0:00:40]} 42. Nf4 {[%clk 0:00:07.5]} 42... Qb1 {[%clk 0:00:39.8]} 43. Qe8+
{[%clk 0:00:06.9]} 43... Bf8 {[%clk 0:00:39.3]} 44. Nxg6 {[%clk 0:00:06.5]}
44... a1=Q {[%clk 0:00:36]} 45. Rxb1 {[%clk 0:00:04.5]} 45... Qxb1+ {[%clk
0:00:36]} 46. Kh2 {[%clk 0:00:05.4]} 46... Qxg6 {[%clk 0:00:36.4]} 0-1

[Event "Early-Titled-Tuesday-Blitz-February-20-2024"]
[Site "Chess.com"]
[Date "2024.02.20"]
[Round "11"]
[White "PedroGil25"]
[Black "IMRosen"]
[Result "1-0"]
[WhiteElo "2522"]
[BlackElo "2657"]
[TimeControl "180+1"]
[EndTime "10:08:55 PST"]
[Termination "PedroGil25 won by checkmate"]

1. c4 {[%clk 0:03:00.3]} 1... e6 {[%clk 0:03:00]} 2. Nf3 {[%clk 0:03:00.5]} 2...
d5 {[%clk 0:03:00.7]} 3. g3 {[%clk 0:03:01.1]} 3... Nf6 {[%clk 0:03:01.4]} 4.
Bg2 {[%clk 0:03:01.5]} 4... dxc4 {[%clk 0:03:01.5]} 5. Qa4+ {[%clk 0:02:59.8]}
5... c6 {[%clk 0:03:01.4]} 6. Qxc4 {[%clk 0:02:59.7]} 6... b5 {[%clk 0:03:02.2]}
7. Qc2 {[%clk 0:02:59.7]} 7... Bb7 {[%clk 0:03:02.7]} 8. O-O {[%clk 0:02:58.5]}
8... Nbd7 {[%clk 0:03:03.4]} 9. d4 {[%clk 0:02:56.2]} 9... c5 {[%clk 0:02:55.9]}
10. a4 {[%clk 0:02:52.6]} 10... a6 {[%clk 0:02:55.9]} 11. axb5 {[%clk
0:02:45.7]} 11... axb5 {[%clk 0:02:56.8]} 12. Rxa8 {[%clk 0:02:45.7]} 12... Qxa8
{[%clk 0:02:57.7]} 13. dxc5 {[%clk 0:02:45.5]} 13... Bxc5 {[%clk 0:02:56.7]} 14.
Nc3 {[%clk 0:02:45.6]} 14... b4 {[%clk 0:02:46.9]} 15. Nb5 {[%clk 0:02:42]}
15... Qa5 {[%clk 0:02:46.7]} 16. Nbd4 {[%clk 0:02:02.3]} 16... Be4 {[%clk
0:02:15.4]} 17. Nb3 {[%clk 0:01:36.9]} 17... Bxc2 {[%clk 0:01:51.8]} 18. Nxa5
{[%clk 0:01:36.4]} 18... O-O {[%clk 0:01:52.5]} 19. Nd2 {[%clk 0:01:16.1]} 19...
Nb6 {[%clk 0:01:35.3]} 20. Nac4 {[%clk 0:01:04.8]} 20... b3 {[%clk 0:01:18.8]}
21. Nxb6 {[%clk 0:00:50.8]} 21... Bxb6 {[%clk 0:01:19.7]} 22. Nc4 {[%clk
0:00:45.1]} 22... Bc5 {[%clk 0:01:08.3]} 23. Ne3 {[%clk 0:00:43.8]} 23... Bg6
{[%clk 0:00:59.5]} 24. Rd1 {[%clk 0:00:42.5]} 24... Rc8 {[%clk 0:01:00]} 25. Bb7
{[%clk 0:00:23.7]} 25... Rb8 {[%clk 0:00:53.1]} 26. Bf3 {[%clk 0:00:24.1]} 26...
Kf8 {[%clk 0:00:51.7]} 27. Nc4 {[%clk 0:00:24.5]} 27... Bc2 {[%clk 0:00:46.6]}
28. Rf1 {[%clk 0:00:20.6]} 28... Rc8 {[%clk 0:00:46.2]} 29. Ne3 {[%clk
0:00:19.5]} 29... Bg6 {[%clk 0:00:45.5]} 30. Rd1 {[%clk 0:00:19.9]} 30... Ke7
{[%clk 0:00:44.8]} 31. Bb7 {[%clk 0:00:15.7]} 31... Rc7 {[%clk 0:00:43.9]} 32.
Ba6 {[%clk 0:00:16.2]} 32... Bb6 {[%clk 0:00:25.3]} 33. Bb5 {[%clk 0:00:14.7]}
33... h5 {[%clk 0:00:24.9]} 34. Ba4 {[%clk 0:00:14.1]} 34... Bxe3 {[%clk
0:00:08.6]} 35. Bxe3 {[%clk 0:00:13.5]} 35... Bc2 {[%clk 0:00:09.3]} 36. Rd4
{[%clk 0:00:12.5]} 36... Nd5 {[%clk 0:00:08.5]} 37. Bd2 {[%clk 0:00:12.4]} 37...
Ra7 {[%clk 0:00:07.7]} 38. e4 {[%clk 0:00:11.1]} 38... Nf6 {[%clk 0:00:05]} 39.
Bb4# {[%clk 0:00:09.9]} 1-0

[Event "Early-Titled-Tuesday-Blitz-February-20-2024"]
[Site "Chess.com"]
[Date "2024.02.20"]
[Round "11"]
[White "arnash_bauyrzhan"]
[Black "InitiatingASC"]
[Result "1/2-1/2"]
[WhiteElo "2266"]
[BlackElo "2384"]
[TimeControl "180+1"]
[EndTime "10:08:56 PST"]
[Termination "Game drawn by repetition"]

1. e4 {[%clk 0:03:00.9]} 1... c6 {[%clk 0:02:56.8]} 2. d4 {[%clk 0:03:00.7]}
2... d6 {[%clk 0:02:57.3]} 3. Nf3 {[%clk 0:03:00]} 3... Bg4 {[%clk 0:02:56.1]}
4. Be2 {[%clk 0:02:59.7]} 4... Qc7 {[%clk 0:02:51.8]} 5. O-O {[%clk 0:02:59.6]}
5... Nd7 {[%clk 0:02:46.8]} 6. h3 {[%clk 0:02:59.9]} 6... Bh5 {[%clk 0:02:46.3]}
7. a4 {[%clk 0:02:54.4]} 7... Ngf6 {[%clk 0:02:42.3]} 8. Nc3 {[%clk 0:02:53]}
8... e5 {[%clk 0:02:41.9]} 9. a5 {[%clk 0:02:48.7]} 9... Be7 {[%clk 0:02:40.3]}
10. Be3 {[%clk 0:02:44.8]} 10... O-O {[%clk 0:02:37.7]} 11. Nd2 {[%clk
0:02:07.3]} 11... Bxe2 {[%clk 0:02:33.6]} 12. Qxe2 {[%clk 0:02:06.4]} 12... Rfe8
{[%clk 0:02:32.2]} 13. dxe5 {[%clk 0:02:01.4]} 13... dxe5 {[%clk 0:02:31.7]} 14.
Nc4 {[%clk 0:01:43.6]} 14... Nc5 {[%clk 0:02:23.8]} 15. Bg5 {[%clk 0:01:41]}
15... Ne6 {[%clk 0:02:03]} 16. Be3 {[%clk 0:01:33.5]} 16... Nd4 {[%clk
0:01:55.8]} 17. Bxd4 {[%clk 0:01:01.4]} 17... exd4 {[%clk 0:01:55.5]} 18. Na4
{[%clk 0:01:01.3]} 18... Bd6 {[%clk 0:01:29.7]} 19. Nxd6 {[%clk 0:00:43.1]}
19... Qxd6 {[%clk 0:01:30.6]} 20. f3 {[%clk 0:00:40.8]} 20... Nh5 {[%clk
0:01:30.4]} 21. Rfd1 {[%clk 0:00:31.4]} 21... Rad8 {[%clk 0:01:23.3]} 22. Qf2
{[%clk 0:00:19.8]} 22... Nf4 {[%clk 0:01:18.5]} 23. Ra3 {[%clk 0:00:13.3]} 23...
Qg6 {[%clk 0:01:18.5]} 24. Kh2 {[%clk 0:00:12.4]} 24... Re5 {[%clk 0:01:10.5]}
25. c3 {[%clk 0:00:08]} 25... Rg5 {[%clk 0:01:10.4]} 26. g3 {[%clk 0:00:04.6]}
26... Nh5 {[%clk 0:00:56.5]} 27. Rxd4 {[%clk 0:00:04.5]} 27... Rxd4 {[%clk
0:00:47.9]} 28. Qxd4 {[%clk 0:00:04.7]} 28... h6 {[%clk 0:00:48.3]} 29. g4
{[%clk 0:00:05.2]} 29... Nf4 {[%clk 0:00:40.8]} 30. h4 {[%clk 0:00:05.1]} 30...
Rxg4 {[%clk 0:00:35.6]} 31. fxg4 {[%clk 0:00:04.4]} 31... Qxg4 {[%clk
0:00:35.8]} 32. Qf2 {[%clk 0:00:01.8]} 32... Qh3+ {[%clk 0:00:26.5]} 33. Kg1
{[%clk 0:00:02.2]} 33... Qg4+ {[%clk 0:00:25.9]} 34. Kh2 {[%clk 0:00:02.1]}
34... Qh3+ {[%clk 0:00:21]} 35. Kg1 {[%clk 0:00:02.5]} 35... Qg4+ {[%clk
0:00:13.4]} 36. Kh2 {[%clk 0:00:03]} 1/2-1/2

[Event "Early-Titled-Tuesday-Blitz-February-20-2024"]
[Site "Chess.com"]
[Date "2024.02.20"]
[Round "11"]
[White "jodarmarlon1985"]
[Black "Inepton_Fermion"]
[Result "1-0"]
[WhiteElo "2212"]
[BlackElo "2381"]
[TimeControl "180+1"]
[EndTime "10:08:56 PST"]
[Termination "jodarmarlon1985 won on time"]

1. e4 {[%clk 0:02:40.8]} 1... g6 {[%clk 0:03:00]} 2. d4 {[%clk 0:02:40.5]} 2...
Bg7 {[%clk 0:03:00.6]} 3. Nf3 {[%clk 0:02:37.8]} 3... d6 {[%clk 0:03:00.4]} 4.
Nc3 {[%clk 0:02:36.7]} 4... Nc6 {[%clk 0:03:00.4]} 5. Be2 {[%clk 0:02:36.7]}
5... Bg4 {[%clk 0:02:58.8]} 6. Be3 {[%clk 0:02:36.5]} 6... e5 {[%clk 0:02:56.8]}
7. d5 {[%clk 0:02:32.6]} 7... Bxf3 {[%clk 0:02:51.8]} 8. Bxf3 {[%clk 0:02:33.5]}
8... Nd4 {[%clk 0:02:51.8]} 9. O-O {[%clk 0:02:20.3]} 9... Nh6 {[%clk
0:02:19.6]} 10. Bxd4 {[%clk 0:02:10.6]} 10... exd4 {[%clk 0:02:19.4]} 11. Nb5
{[%clk 0:02:11.5]} 11... O-O {[%clk 0:02:04.2]} 12. Nxd4 {[%clk 0:02:10.9]}
12... Qg5 {[%clk 0:01:44.7]} 13. c3 {[%clk 0:02:03.1]} 13... Rae8 {[%clk
0:01:43.8]} 14. Re1 {[%clk 0:01:54.8]} 14... Re7 {[%clk 0:01:25.5]} 15. a4
{[%clk 0:01:53.3]} 15... Rfe8 {[%clk 0:01:14.7]} 16. Qc1 {[%clk 0:01:35.9]}
16... Qf6 {[%clk 0:00:55.4]} 17. Qd2 {[%clk 0:01:31.7]} 17... a6 {[%clk
0:00:51.7]} 18. b4 {[%clk 0:01:23]} 18... Re5 {[%clk 0:00:50.2]} 19. b5 {[%clk
0:01:21.1]} 19... a5 {[%clk 0:00:49.8]} 20. b6 {[%clk 0:01:20.5]} 20... cxb6
{[%clk 0:00:46.2]} 21. Rab1 {[%clk 0:01:20.3]} 21... Qe7 {[%clk 0:00:38.1]} 22.
Red1 {[%clk 0:01:09.8]} 22... Qc7 {[%clk 0:00:23.9]} 23. g3 {[%clk 0:00:56]}
23... Rc8 {[%clk 0:00:14.1]} 24. Nb5 {[%clk 0:00:52.9]} 24... Qc5 {[%clk
0:00:14.6]} 25. h3 {[%clk 0:00:46.2]} 25... f5 {[%clk 0:00:14.5]} 26. Re1 {[%clk
0:00:36.5]} 26... Rce8 {[%clk 0:00:11]} 27. exf5 {[%clk 0:00:23.8]} 27... Nxf5
{[%clk 0:00:11.3]} 28. Kg2 {[%clk 0:00:22.4]} 28... Qc4 {[%clk 0:00:06.2]} 29.
Rxe5 {[%clk 0:00:14.1]} 29... Bxe5 {[%clk 0:00:07.1]} 30. Qd1 {[%clk 0:00:09.6]}
30... h5 {[%clk 0:00:03.6]} 31. Be2 {[%clk 0:00:06.9]} 31... Qc5 {[%clk
0:00:03]} 32. Qd3 {[%clk 0:00:05]} 32... Rf8 {[%clk 0:00:02.9]} 33. Bf3 {[%clk
0:00:04.9]} 33... Kg7 {[%clk 0:00:02]} 34. Re1 {[%clk 0:00:04.9]} 1-0

[Event "Early-Titled-Tuesday-Blitz-February-20-2024"]
[Site "Chess.com"]
[Date "2024.02.20"]
[Round "11"]
[White "CristianS27"]
[Black "AvitalBor"]
[Result "0-1"]
[WhiteElo "2557"]
[BlackElo "2754"]
[TimeControl "180+1"]
[EndTime "10:08:57 PST"]
[Termination "AvitalBor won on time"]

1. e4 {[%clk 0:03:00.1]} 1... e6 {[%clk 0:02:59.5]} 2. d4 {[%clk 0:02:53.8]}
2... d5 {[%clk 0:03:00.4]} 3. Nd2 {[%clk 0:02:54]} 3... Nf6 {[%clk 0:02:59.1]}
4. e5 {[%clk 0:02:53.4]} 4... Nfd7 {[%clk 0:02:59.7]} 5. c3 {[%clk 0:02:54.3]}
5... c5 {[%clk 0:03:00]} 6. Bd3 {[%clk 0:02:54.9]} 6... Nc6 {[%clk 0:02:59.6]}
7. Ne2 {[%clk 0:02:55.4]} 7... f6 {[%clk 0:02:55.6]} 8. Nf4 {[%clk 0:02:55.2]}
8... Ndxe5 {[%clk 0:02:44.6]} 9. dxe5 {[%clk 0:02:53.6]} 9... Nxe5 {[%clk
0:02:44.7]} 10. Bb5+ {[%clk 0:02:48.5]} 10... Kf7 {[%clk 0:02:41.8]} 11. Nf3
{[%clk 0:02:43.5]} 11... Nxf3+ {[%clk 0:02:38.6]} 12. Qxf3 {[%clk 0:02:44.4]}
12... c4 {[%clk 0:02:37.3]} 13. O-O {[%clk 0:02:30.8]} 13... Qa5 {[%clk
0:02:33.8]} 14. Qh5+ {[%clk 0:02:24.3]} 14... Kg8 {[%clk 0:02:09.5]} 15. Qe8
{[%clk 0:01:58]} 15... Qb6 {[%clk 0:01:35.3]} 16. Be3 {[%clk 0:01:50.9]} 16...
Qd6 {[%clk 0:01:31.3]} 17. Rfe1 {[%clk 0:01:43.7]} 17... a6 {[%clk 0:01:15.9]}
18. Ba4 {[%clk 0:01:16.8]} 18... b5 {[%clk 0:01:15.6]} 19. Bc2 {[%clk
0:00:58.8]} 19... e5 {[%clk 0:01:15.8]} 20. Nh5 {[%clk 0:00:38.4]} 20... Bb7
{[%clk 0:01:09.1]} 21. Nxf6+ {[%clk 0:00:32.2]} 21... Qxf6 {[%clk 0:01:05.9]}
22. Qd7 {[%clk 0:00:29.8]} 22... Bc6 {[%clk 0:01:01.4]} 23. Qc7 {[%clk
0:00:25.4]} 23... Qd6 {[%clk 0:00:48.4]} 24. Qb6 {[%clk 0:00:22.1]} 24... Be7
{[%clk 0:00:42.3]} 25. Rad1 {[%clk 0:00:21.6]} 25... Kf7 {[%clk 0:00:32.8]} 26.
h3 {[%clk 0:00:06]} 26... Rhb8 {[%clk 0:00:28.4]} 27. Qa5 {[%clk 0:00:06.4]}
27... Bd8 {[%clk 0:00:28.4]} 28. Qa3 {[%clk 0:00:05]} 28... Qxa3 {[%clk
0:00:28.4]} 29. bxa3 {[%clk 0:00:05.9]} 29... Bf6 {[%clk 0:00:27.7]} 30. Bc5
{[%clk 0:00:03.8]} 30... g6 {[%clk 0:00:26.4]} 31. h4 {[%clk 0:00:02.9]} 31...
Re8 {[%clk 0:00:23.8]} 32. Bd6 {[%clk 0:00:02.9]} 32... Rad8 {[%clk 0:00:23.3]}
33. Bc5 {[%clk 0:00:02.2]} 33... d4 {[%clk 0:00:23.2]} 34. h5 {[%clk 0:00:02.4]}
34... d3 {[%clk 0:00:23]} 35. hxg6+ {[%clk 0:00:03.3]} 35... hxg6 {[%clk
0:00:23]} 36. Bb1 {[%clk 0:00:04.2]} 36... e4 {[%clk 0:00:22.8]} 37. Bb4 {[%clk
0:00:02]} 37... Rh8 {[%clk 0:00:19.9]} 38. Re3 {[%clk 0:00:01.9]} 38... Rh5
{[%clk 0:00:19.6]} 0-1